Workbook

Sheet Guide
G1: GUIDE | H1: REVENUS
B2: FLUX DE TRÉSORERIE PERSONNELS
B3: Ce classeur contient une feuille de calcul qui permet de suivre les flux de trésorerie annuels, mensuels et quotidiens. Choisissez le type de flux de trésorerie qui vous convient ou utilisez-les tous pour mieux suivre vos flux de trésorerie personnels.
B5: Flux de trésorerie annuels | D5: Flux de trésorerie mensuels | F5: Flux de trésorerie quotidiens
B6: Entrez le montant des flux de trésorerie annuels en lien avec différents aspects. Consultez les détails mensuels et le comparatif des différentes valeurs, et ce qu’il faut retenir de vos chiffres annuels et mensuels. | D6: Entrez vos flux de trésorerie mensuels ou estimez les mois restants pour afficher les flux de trésorerie prévisionnels pour l’année et pour chaque mois. | F6: Entrez le montant estimé de vos flux de trésorerie quotidiens et examinez l’estimation des totaux mensuels et annuels. Cette feuille de calcul vous permet d’identifier vos habitudes quotidiennes en matière de dépenses au cours d’un mois ou d’une année.

Sheet Flux de trésorerie annuels
B1: FLUX DE TRÉSORERIE PERSONNELS | G1: GUIDE | H1: FLUX DE TRÉSORERIE ANNUELS | J1: FLUX DE TRÉSORERIE MENSUELS
B2: Total des flux de trésorerie à ce jour : | D2: =FluxTrésorerieAnnuelsÀCeJour -> 39,750.00 € | G2: Il s’agit d’une estimation annuelle. Cette feuille de calcul vous permet de consulter les montants annuels avec des valeurs mensuelles estimées. Utilisez les autres feuilles de calcul pour ajouter des postes quotidiens.
B3: RÉCAPITULATIF DES REVENUS | F3: RÉCAPITULATIF DES DÉPENSES | J3: RÉCAPITULATIF DES DÉPENSES DISCRÉTIONNAIRES | N3: RÉCAPITULATIF DE L’ÉPARGNE
B4: Total année : | C4: =Revenus!C10 -> 125,000.00 € | F4: Total année : | G4: =Dépenses[[#Totals],[Annuel ]] -> 49,000.00 € | J4: Total année : | K4: =Dépenses_discrétionnaires[[#Totals],[Annuel ]] -> 13,250.00 € | N4: Total année : | O4: =Épargne[[#Totals],[Annuel ]] -> 23,000.00 €
B5: Un graphique en secteurs montrant les revenus de différentes sources figure dans cette cellule. | F5: Un graphique en secteurs montrant les dépenses engagées figure dans cette cellule. | J5: Un graphique en secteurs montrant les dépenses discrétionnaires figure dans cette cellule. | N5: Un graphique en secteurs montrant l’épargne et les investissements figure dans cette cellule.
B6: Total mois : | C6: =Revenus!D10 -> 10,416.67 € | F6: Total mois : | G6: =Dépenses[[#Totals],[Mensuel ]] -> 4,083.33 € | J6: Total mois : | K6: =Dépenses_discrétionnaires[[#Totals],[Mensuel ]] -> 1,104.17 € | N6: Total mois : | O6: =Épargne!D9 -> 1,916.67 €

Sheet Flux de trésorerie mensuels
B1: FLUX DE TRÉSORERIE PERSONNELS | H1: GUIDE | I1: FLUX DE TRÉSORERIE ANNUELS | J1: FLUX DE TRÉSORERIE MENSUELS | K1: RÉCAPITULATIF QUOTIDIEN
B2: Total des flux de trésorerie mensuels : | D2: =FluxTrésorerieMensuelsÀCeJour -> 18,380.00 € | F2: REMARQUE : Pour les postes quotidiens, estimez le montant ou la valeur mensuel, et placez cette valeur dans la colonne du mois approprié.
B3: Type | C3: Description | D3: Jan. | E3: Fév. | F3: Mar. | G3: Avr. | H3: Mai | I3: Juin | J3: Juil. | K3: Août | L3: Sept. | M3: Oct. | N3: Nov. | O3: Déc. | P3: Total
B4: Revenus | C4: Salaire | D4: 7,500.00 € | E4: 7,500.00 € | F4: 7,500.00 € | G4: 7,500.00 € | H4: 7,500.00 € | I4: 7,500.00 € | P4: =SUM(Mensuel[[#This Row],[Jan.]:[Déc.]]) -> 45,000.00 €
B5: Revenus | C5: Commissions/Primes | D5: 400.00 € | E5: 400.00 € | F5: 500.00 € | G5: 200.00 € | H5: 0.00 € | I5: 600.00 € | P5: =SUM(Mensuel[[#This Row],[Jan.]:[Déc.]]) -> 2,100.00 €
B6: Revenus | C6: Divers 1 | D6: 2,500.00 € | E6: 2,500.00 € | F6: 2,500.00 € | G6: 2,500.00 € | H6: 2,500.00 € | I6: 2,500.00 € | P6: =SUM(Mensuel[[#This Row],[Jan.]:[Déc.]]) -> 15,000.00 €
B7: Revenus | C7: Divers 2 | D7: 0.00 € | E7: 0.00 € | F7: 0.00 € | G7: 0.00 € | H7: 0.00 € | I7: 0.00 € | P7: =SUM(Mensuel[[#This Row],[Jan.]:[Déc.]]) -> 0.00 €
B8: Revenus | C8: Divers 3 | D8: 0.00 € | E8: 0.00 € | F8: 0.00 € | G8: 0.00 € | H8: 0.00 € | I8: 0.00 € | P8: =SUM(Mensuel[[#This Row],[Jan.]:[Déc.]]) -> 0.00 €
B9: Revenus | C9: Divers 4 | D9: 0.00 € | E9: 0.00 € | F9: 0.00 € | G9: 0.00 € | H9: 0.00 € | I9: 0.00 € | P9: =SUM(Mensuel[[#This Row],[Jan.]:[Déc.]]) -> 0.00 €
B10: Dépenses | C10: Assurance maladie | D10: 1,250.00 € | E10: 1,250.00 € | F10: 1,250.00 € | G10: 1,250.00 € | H10: 1,250.00 € | I10: 1,250.00 € | P10: =SUM(Mensuel[[#This Row],[Jan.]:[Déc.]]) -> 7,500.00 €
B11: Dépenses | C11: Impôts sur les revenus | D11: 208.33 € | E11: 208.33 € | F11: 208.33 € | G11: 208.33 € | H11: 208.33 € | I11: 208.33 € | P11: =SUM(Mensuel[[#This Row],[Jan.]:[Déc.]]) -> 1,250.00 €
B12: Dépenses | C12: Taxe automobile/Frais | D12: 16.67 € | E12: 16.67 € | F12: 16.67 € | G12: 16.67 € | H12: 16.67 € | I12: 16.67 € | P12: =SUM(Mensuel[[#This Row],[Jan.]:[Déc.]]) -> 100.00 €
B13: Dépenses | C13: Prêt automobile | D13: 333.33 € | E13: 333.33 € | F13: 333.33 € | G13: 333.33 € | H13: 333.33 € | I13: 333.33 € | P13: =SUM(Mensuel[[#This Row],[Jan.]:[Déc.]]) -> 2,000.00 €
B14: Dépenses | C14: Prêt immobilier/Loyer | D14: 1,250.00 € | E14: 1,250.00 € | F14: 1,250.00 € | G14: 1,250.00 € | H14: 1,250.00 € | I14: 1,250.00 € | P14: =SUM(Mensuel[[#This Row],[Jan.]:[Déc.]]) -> 7,500.00 €
B15: Dépenses | C15: Assurance | D15: 25.00 € | E15: 25.00 € | F15: 25.00 € | G15: 25.00 € | H15: 25.00 € | I15: 25.00 € | P15: =SUM(Mensuel[[#This Row],[Jan.]:[Déc.]]) -> 150.00 €
B16: Dépenses | C16: Électricité | D16: 100.00 € | E16: 100.00 € | F16: 100.00 € | G16: 100.00 € | H16: 100.00 € | I16: 100.00 € | P16: =SUM(Mensuel[[#This Row],[Jan.]:[Déc.]]) -> 600.00 €
B17: Dépenses | C17: Gaz | D17: 50.00 € | E17: 50.00 € | F17: 50.00 € | G17: 50.00 € | H17: 50.00 € | I17: 50.00 € | P17: =SUM(Mensuel[[#This Row],[Jan.]:[Déc.]]) -> 300.00 €
B18: Dépenses | C18: Eau | D18: 50.00 € | E18: 50.00 € | F18: 50.00 € | G18: 50.00 € | H18: 50.00 € | I18: 50.00 € | P18: =SUM(Mensuel[[#This Row],[Jan.]:[Déc.]]) -> 300.00 €
B19: Dépenses | C19: Assainissement | D19: 25.00 € | E19: 25.00 € | F19: 25.00 € | G19: 25.00 € | H19: 25.00 € | I19: 25.00 € | P19: =SUM(Mensuel[[#This Row],[Jan.]:[Déc.]]) -> 150.00 €
B20: Dépenses | C20: Ordures ménagères | D20: 12.50 € | E20: 12.50 € | F20: 12.50 € | G20: 12.50 € | H20: 12.50 € | I20: 12.50 € | P20: =SUM(Mensuel[[#This Row],[Jan.]:[Déc.]]) -> 75.00 €
B21: Dépenses | C21: Téléphone | D21: 50.00 € | E21: 50.00 € | F21: 50.00 € | G21: 50.00 € | H21: 50.00 € | I21: 50.00 € | P21: =SUM(Mensuel[[#This Row],[Jan.]:[Déc.]]) -> 300.00 €
B22: Dépenses | C22: Internet | D22: 50.00 € | E22: 50.00 € | F22: 50.00 € | G22: 50.00 € | H22: 50.00 € | I22: 50.00 € | P22: =SUM(Mensuel[[#This Row],[Jan.]:[Déc.]]) -> 300.00 €
B23: Dépenses | C23: Prime assurance vie/invalidité | D23: 125.00 € | E23: 125.00 € | F23: 125.00 € | G23: 125.00 € | H23: 125.00 € | I23: 125.00 € | P23: =SUM(Mensuel[[#This Row],[Jan.]:[Déc.]]) -> 750.00 €
B24: Dépenses | C24: Nourriture | D24: 400.00 € | E24: 500.00 € | F24: 450.00 € | G24: 400.00 € | H24: 450.00 € | I24: 425.00 € | P24: =SUM(Mensuel[[#This Row],[Jan.]:[Déc.]]) -> 2,625.00 €
B25: Dépenses | C25: Habillement | D25: 50.00 € | E25: 75.00 € | F25: 100.00 € | G25: 75.00 € | H25: 125.00 € | I25: 75.00 € | P25: =SUM(Mensuel[[#This Row],[Jan.]:[Déc.]]) -> 500.00 €
B26: Dépenses | C26: Soins médicaux/dentaires/Pharmacie | D26: 50.00 € | E26: 10.00 € | F26: 25.00 € | G26: 25.00 € | H26: 20.00 € | I26: 70.00 € | P26: =SUM(Mensuel[[#This Row],[Jan.]:[Déc.]]) -> 200.00 €
B27: Dépenses | C27: Bus | D27: 30.00 € | E27: 30.00 € | F27: 30.00 € | G27: 20.00 € | H27: 30.00 € | I27: 30.00 € | P27: =SUM(Mensuel[[#This Row],[Jan.]:[Déc.]]) -> 170.00 €
B28: Dépenses | C28: Divers 2 | D28: 0.00 € | E28: 0.00 € | F28: 0.00 € | G28: 0.00 € | H28: 0.00 € | I28: 0.00 € | P28: =SUM(Mensuel[[#This Row],[Jan.]:[Déc.]]) -> 0.00 €
B29: Dépenses | C29: Divers 3 | D29: 0.00 € | E29: 0.00 € | F29: 0.00 € | G29: 0.00 € | H29: 0.00 € | I29: 0.00 € | P29: =SUM(Mensuel[[#This Row],[Jan.]:[Déc.]]) -> 0.00 €
B30: Dépenses | C30: Divers 4 | D30: 0.00 € | E30: 0.00 € | F30: 0.00 € | G30: 0.00 € | H30: 0.00 € | I30: 0.00 € | P30: =SUM(Mensuel[[#This Row],[Jan.]:[Déc.]]) -> 0.00 €
B31: Dépenses discrétionnaires | C31: Restaurants | D31: 50.00 € | E31: 150.00 € | F31: 100.00 € | G31: 50.00 € | H31: 150.00 € | I31: 100.00 € | P31: =SUM(Mensuel[[#This Row],[Jan.]:[Déc.]]) -> 600.00 €
B32: Dépenses discrétionnaires | C32: Cadeaux | D32: 25.00 € | E32: 75.00 € | F32: 50.00 € | G32: 25.00 € | H32: 75.00 € | I32: 50.00 € | P32: =SUM(Mensuel[[#This Row],[Jan.]:[Déc.]]) -> 300.00 €
B33: Dépenses discrétionnaires | C33: Déplacements | D33: 0.00 € | E33: 0.00 € | F33: 1,000.00 € | G33: 0.00 € | H33: 0.00 € | I33: 1,000.00 € | P33: =SUM(Mensuel[[#This Row],[Jan.]:[Déc.]]) -> 2,000.00 €
B34: Dépenses discrétionnaires | C34: Loisirs | D34: 50.00 € | E34: 150.00 € | F34: 100.00 € | G34: 50.00 € | H34: 150.00 € | I34: 100.00 € | P34: =SUM(Mensuel[[#This Row],[Jan.]:[Déc.]]) -> 600.00 €
B35: Dépenses discrétionnaires | C35: Soins personnels | D35: 15.00 € | E35: 25.00 € | F35: 35.00 € | G35: 15.00 € | H35: 25.00 € | I35: 35.00 € | P35: =SUM(Mensuel[[#This Row],[Jan.]:[Déc.]]) -> 150.00 €
B36: Dépenses discrétionnaires | C36: Achats | D36: 100.00 € | E36: 200.00 € | F36: 150.00 € | G36: 175.00 € | H36: 150.00 € | I36: 175.00 € | P36: =SUM(Mensuel[[#This Row],[Jan.]:[Déc.]]) -> 950.00 €
B37: Dépenses discrétionnaires | C37: Dons | D37: 50.00 € | E37: 50.00 € | F37: 50.00 € | G37: 50.00 € | H37: 50.00 € | I37: 50.00 € | P37: =SUM(Mensuel[[#This Row],[Jan.]:[Déc.]]) -> 300.00 €
B38: Dépenses discrétionnaires | C38: Club/Abonnements | D38: 25.00 € | E38: 25.00 € | F38: 25.00 € | G38: 25.00 € | H38: 25.00 € | I38: 25.00 € | P38: =SUM(Mensuel[[#This Row],[Jan.]:[Déc.]]) -> 150.00 €
B39: Dépenses discrétionnaires | C39: Rénovations | D39: 400.00 € | E39: 400.00 € | F39: 400.00 € | G39: 400.00 € | H39: 400.00 € | I39: 400.00 € | P39: =SUM(Mensuel[[#This Row],[Jan.]:[Déc.]]) -> 2,400.00 €
B40: Dépenses discrétionnaires | C40: Divers 1 | D40: 0.00 € | E40: 0.00 € | F40: 0.00 € | G40: 0.00 € | H40: 0.00 € | I40: 0.00 € | P40: =SUM(Mensuel[[#This Row],[Jan.]:[Déc.]]) -> 0.00 €
B41: Dépenses discrétionnaires | C41: Divers 2 | D41: 0.00 € | E41: 0.00 € | F41: 0.00 € | G41: 0.00 € | H41: 0.00 € | I41: 0.00 € | P41: =SUM(Mensuel[[#This Row],[Jan.]:[Déc.]]) -> 0.00 €
B42: Épargne | C42: Réserves de trésorerie | D42: 416.67 € | E42: 416.67 € | F42: 416.67 € | G42: 416.67 € | H42: 416.67 € | I42: 416.67 € | P42: =SUM(Mensuel[[#This Row],[Jan.]:[Déc.]]) -> 2,500.00 €
B43: Épargne | C43: Épargne retraite | D43: 1,000.00 € | E43: 1,000.00 € | F43: 1,000.00 € | G43: 1,000.00 € | H43: 1,000.00 € | I43: 1,000.00 € | P43: =SUM(Mensuel[[#This Row],[Jan.]:[Déc.]]) -> 6,000.00 €
B44: Épargne | C44: Compte d’épargne/placement | D44: 500.00 € | E44: 500.00 € | F44: 500.00 € | G44: 500.00 € | H44: 500.00 € | I44: 500.00 € | P44: =SUM(Mensuel[[#This Row],[Jan.]:[Déc.]]) -> 3,000.00 €
B45: Épargne | C45: Divers 1 | D45: 0.00 € | E45: 0.00 € | F45: 0.00 € | G45: 0.00 € | H45: 0.00 € | I45: 0.00 € | P45: =SUM(Mensuel[[#This Row],[Jan.]:[Déc.]]) -> 0.00 €
B46: Épargne | C46: Divers 2 | D46: 0.00 € | E46: 0.00 € | F46: 0.00 € | G46: 0.00 € | H46: 0.00 € | I46: 0.00 € | P46: =SUM(Mensuel[[#This Row],[Jan.]:[Déc.]]) -> 0.00 €
B47: Total | D47: =SUMIF(Mensuel[Type],"Revenus",Mensuel[Jan.])-SUMIF(Mensuel[Type],"<>Revenus",Mensuel[Jan.]) -> 3,692.50 € | E47: =SUMIF(Mensuel[Type],"Revenus",Mensuel[Fév.])-SUMIF(Mensuel[Type],"<>Revenus",Mensuel[Fév.]) -> 3,247.50 € | F47: =SUMIF(Mensuel[Type],"Revenus",Mensuel[Mar.])-SUMIF(Mensuel[Type],"<>Revenus",Mensuel[Mar.]) -> 2,522.50 € | G47: =SUMIF(Mensuel[Type],"Revenus",Mensuel[Avr.])-SUMIF(Mensuel[Type],"<>Revenus",Mensuel[Avr.]) -> 3,427.50 € | H47: =SUMIF(Mensuel[Type],"Revenus",Mensuel[Mai])-SUMIF(Mensuel[Type],"<>Revenus",Mensuel[Mai]) -> 2,887.50 € | I47: =SUMIF(Mensuel[Type],"Revenus",Mensuel[Juin])-SUMIF(Mensuel[Type],"<>Revenus",Mensuel[Juin]) -> 2,602.50 € | J47: =SUMIF(Mensuel[Type],"Revenus",Mensuel[Juil.])-SUMIF(Mensuel[Type],"<>Revenus",Mensuel[Juil.]) -> 0.00 € | K47: =SUMIF(Mensuel[Type],"Revenus",Mensuel[Août])-SUMIF(Mensuel[Type],"<>Revenus",Mensuel[Août]) -> 0.00 € | L47: =SUMIF(Mensuel[Type],"Revenus",Mensuel[Sept.])-SUMIF(Mensuel[Type],"<>Revenus",Mensuel[Sept.]) -> 0.00 € | M47: =SUMIF(Mensuel[Type],"Revenus",Mensuel[Oct.])-SUMIF(Mensuel[Type],"<>Revenus",Mensuel[Oct.]) -> 0.00 € | N47: =SUMIF(Mensuel[Type],"Revenus",Mensuel[Nov.])-SUMIF(Mensuel[Type],"<>Revenus",Mensuel[Nov.]) -> 0.00 € | O47: =SUMIF(Mensuel[Type],"Revenus",Mensuel[Déc.])-SUMIF(Mensuel[Type],"<>Revenus",Mensuel[Déc.]) -> 0.00 € | P47: =SUMIF(Mensuel[Type],"Revenus",Mensuel[Total])-SUMIF(Mensuel[Type],"<>Revenus",Mensuel[Total]) -> 18,380.00 €

Sheet Récapitulatif quotidien
B1: FLUX DE TRÉSORERIE PERSONNELS | F1: GUIDE | G1: FLUX DE TRÉSORERIE MENSUELS | H1: RÉCAPITULATIF QUOTIDIEN | I1: REVENUS
B2: Total de la trésorerie disponible : | D2: =FluxTrésorerieQuotidiens -> 577.84 € | F2: REMARQUE : Si vous souhaitez ajouter des postes quotidiens à la table, estimez le montant ou la valeur mensuel, et placez cette valeur dans la colonne du mois approprié.
B3: RÉCAPITULATIF QUOTIDIEN
B4: TOTAUX | C4: Quotidien | D4: Mensuel | E4: Annuel
B5: Revenus | C5: =SUMIF(Quotidien[Type],$B5,Quotidien[Quotidien]) -> 342.47 € | D5: =SUMIF(Quotidien[Type],$B5,Quotidien[Mensuel]) -> 10,416.80 € | E5: =SUMIF(Quotidien[Type],$B5,Quotidien[Annuel]) -> 125,001.55 €
B6: Dépenses | C6: =SUMIF(Quotidien[Type],$B6,Quotidien[Quotidien]) -> 136.06 € | D6: =SUMIF(Quotidien[Type],$B6,Quotidien[Mensuel]) -> 4,138.49 € | E6: =SUMIF(Quotidien[Type],$B6,Quotidien[Annuel]) -> 49,661.90 €
B7: Dépenses_discrétionnaires | C7: =SUMIF(Quotidien[Type],$B7,Quotidien[Quotidien]) -> 36.29 € | D7: =SUMIF(Quotidien[Type],$B7,Quotidien[Mensuel]) -> 1,103.82 € | E7: =SUMIF(Quotidien[Type],$B7,Quotidien[Annuel]) -> 13,245.85 €
B8: Épargne | C8: =SUMIF(Quotidien[Type],$B8,Quotidien[Quotidien]) -> 63.02 € | D8: =SUMIF(Quotidien[Type],$B8,Quotidien[Mensuel]) -> 1,916.86 € | E8: =SUMIF(Quotidien[Type],$B8,Quotidien[Annuel]) -> 23,002.30 €
B9: Type | C9: Description | D9: Quotidien | E9: Mensuel | F9: Annuel
B10: Revenus | C10: Salaire | D10: 246.58 € | E10: =Quotidien[[#This Row],[Annuel]]/12 -> 7,500.14 € | F10: =Quotidien[[#This Row],[Quotidien]]*365 -> 90,001.70 €
B11: Revenus | C11: Commissions/Primes | D11: 13.70 € | E11: =Quotidien[[#This Row],[Annuel]]/12 -> 416.71 € | F11: =Quotidien[[#This Row],[Quotidien]]*365 -> 5,000.50 €
B12: Revenus | C12: Divers 1 | D12: 82.19 € | E12: =Quotidien[[#This Row],[Annuel]]/12 -> 2,499.95 € | F12: =Quotidien[[#This Row],[Quotidien]]*365 -> 29,999.35 €
B13: Revenus | C13: Divers 2 | D13: 0.00 € | E13: =Quotidien[[#This Row],[Annuel]]/12 -> 0.00 € | F13: =Quotidien[[#This Row],[Quotidien]]*365 -> 0.00 €
B14: Revenus | C14: Divers 3 | D14: 0.00 € | E14: =Quotidien[[#This Row],[Annuel]]/12 -> 0.00 € | F14: =Quotidien[[#This Row],[Quotidien]]*365 -> 0.00 €
B15: Revenus | C15: Divers 4 | D15: 0.00 € | E15: =Quotidien[[#This Row],[Annuel]]/12 -> 0.00 € | F15: =Quotidien[[#This Row],[Quotidien]]*365 -> 0.00 €
B16: Dépenses | C16: Assurance maladie | D16: 41.10 € | E16: =Quotidien[[#This Row],[Annuel]]/12 -> 1,250.13 € | F16: =Quotidien[[#This Row],[Quotidien]]*365 -> 15,001.50 €
B17: Dépenses | C17: Impôts sur les revenus | D17: 6.85 € | E17: =Quotidien[[#This Row],[Annuel]]/12 -> 208.35 € | F17: =Quotidien[[#This Row],[Quotidien]]*365 -> 2,500.25 €
B18: Dépenses | C18: Taxe automobile/Frais | D18: 0.55 € | E18: =Quotidien[[#This Row],[Annuel]]/12 -> 16.73 € | F18: =Quotidien[[#This Row],[Quotidien]]*365 -> 200.75 €
B19: Dépenses | C19: Prêt automobile | D19: 10.96 € | E19: =Quotidien[[#This Row],[Annuel]]/12 -> 333.37 € | F19: =Quotidien[[#This Row],[Quotidien]]*365 -> 4,000.40 €
B20: Dépenses | C20: Prêt immobilier/Loyer | D20: 41.10 € | E20: =Quotidien[[#This Row],[Annuel]]/12 -> 1,250.13 € | F20: =Quotidien[[#This Row],[Quotidien]]*365 -> 15,001.50 €
B21: Dépenses | C21: Assurance | D21: 0.68 € | E21: =Quotidien[[#This Row],[Annuel]]/12 -> 20.68 € | F21: =Quotidien[[#This Row],[Quotidien]]*365 -> 248.20 €
B22: Dépenses | C22: Électricité | D22: 3.29 € | E22: =Quotidien[[#This Row],[Annuel]]/12 -> 100.07 € | F22: =Quotidien[[#This Row],[Quotidien]]*365 -> 1,200.85 €
B23: Dépenses | C23: Gaz | D23: 1.64 € | E23: =Quotidien[[#This Row],[Annuel]]/12 -> 49.88 € | F23: =Quotidien[[#This Row],[Quotidien]]*365 -> 598.60 €
B24: Dépenses | C24: Eau | D24: 1.64 € | E24: =Quotidien[[#This Row],[Annuel]]/12 -> 49.88 € | F24: =Quotidien[[#This Row],[Quotidien]]*365 -> 598.60 €
B25: Dépenses | C25: Assainissement | D25: 0.82 € | E25: =Quotidien[[#This Row],[Annuel]]/12 -> 24.94 € | F25: =Quotidien[[#This Row],[Quotidien]]*365 -> 299.30 €
B26: Dépenses | C26: Ordures ménagères | D26: 0.41 € | E26: =Quotidien[[#This Row],[Annuel]]/12 -> 12.47 € | F26: =Quotidien[[#This Row],[Quotidien]]*365 -> 149.65 €
B27: Dépenses | C27: Téléphone | D27: 1.64 € | E27: =Quotidien[[#This Row],[Annuel]]/12 -> 49.88 € | F27: =Quotidien[[#This Row],[Quotidien]]*365 -> 598.60 €
B28: Dépenses | C28: Internet | D28: 1.64 € | E28: =Quotidien[[#This Row],[Annuel]]/12 -> 49.88 € | F28: =Quotidien[[#This Row],[Quotidien]]*365 -> 598.60 €
B29: Dépenses | C29: Prime assurance vie/invalidité | D29: 4.11 € | E29: =Quotidien[[#This Row],[Annuel]]/12 -> 125.01 € | F29: =Quotidien[[#This Row],[Quotidien]]*365 -> 1,500.15 €
B30: Dépenses | C30: Nourriture | D30: 13.70 € | E30: =Quotidien[[#This Row],[Annuel]]/12 -> 416.71 € | F30: =Quotidien[[#This Row],[Quotidien]]*365 -> 5,000.50 €
B31: Dépenses | C31: Habillement | D31: 3.29 € | E31: =Quotidien[[#This Row],[Annuel]]/12 -> 100.07 € | F31: =Quotidien[[#This Row],[Quotidien]]*365 -> 1,200.85 €
B32: Dépenses | C32: Soins médicaux/dentaires/Pharmacie | D32: 1.64 € | E32: =Quotidien[[#This Row],[Annuel]]/12 -> 49.88 € | F32: =Quotidien[[#This Row],[Quotidien]]*365 -> 598.60 €
B33: Dépenses | C33: Bus | D33: 1.00 € | E33: =Quotidien[[#This Row],[Annuel]]/12 -> 30.42 € | F33: =Quotidien[[#This Row],[Quotidien]]*365 -> 365.00 €
B34: Dépenses | C34: Divers 2 | D34: 0.00 € | E34: =Quotidien[[#This Row],[Annuel]]/12 -> 0.00 € | F34: =Quotidien[[#This Row],[Quotidien]]*365 -> 0.00 €
B35: Dépenses | C35: Divers 3 | D35: 0.00 € | E35: =Quotidien[[#This Row],[Annuel]]/12 -> 0.00 € | F35: =Quotidien[[#This Row],[Quotidien]]*365 -> 0.00 €
B36: Dépenses | C36: Divers 4 | D36: 0.00 € | E36: =Quotidien[[#This Row],[Annuel]]/12 -> 0.00 € | F36: =Quotidien[[#This Row],[Quotidien]]*365 -> 0.00 €
B37: Dépenses_discrétionnaires | C37: Restaurants | D37: 3.29 € | E37: =Quotidien[[#This Row],[Annuel]]/12 -> 100.07 € | F37: =Quotidien[[#This Row],[Quotidien]]*365 -> 1,200.85 €
B38: Dépenses_discrétionnaires | C38: Cadeaux | D38: 1.64 € | E38: =Quotidien[[#This Row],[Annuel]]/12 -> 49.88 € | F38: =Quotidien[[#This Row],[Quotidien]]*365 -> 598.60 €
B39: Dépenses_discrétionnaires | C39: Déplacements | D39: 6.16 € | E39: =Quotidien[[#This Row],[Annuel]]/12 -> 187.37 € | F39: =Quotidien[[#This Row],[Quotidien]]*365 -> 2,248.40 €
B40: Dépenses_discrétionnaires | C40: Loisirs | D40: 3.29 € | E40: =Quotidien[[#This Row],[Annuel]]/12 -> 100.07 € | F40: =Quotidien[[#This Row],[Quotidien]]*365 -> 1,200.85 €
B41: Dépenses_discrétionnaires | C41: Soins personnels | D41: 0.82 € | E41: =Quotidien[[#This Row],[Annuel]]/12 -> 24.94 € | F41: =Quotidien[[#This Row],[Quotidien]]*365 -> 299.30 €
B42: Dépenses_discrétionnaires | C42: Achats | D42: 5.48 € | E42: =Quotidien[[#This Row],[Annuel]]/12 -> 166.68 € | F42: =Quotidien[[#This Row],[Quotidien]]*365 -> 2,000.20 €
B43: Dépenses_discrétionnaires | C43: Dons | D43: 1.64 € | E43: =Quotidien[[#This Row],[Annuel]]/12 -> 49.88 € | F43: =Quotidien[[#This Row],[Quotidien]]*365 -> 598.60 €
B44: Dépenses_discrétionnaires | C44: Club/Abonnements | D44: 0.82 € | E44: =Quotidien[[#This Row],[Annuel]]/12 -> 24.94 € | F44: =Quotidien[[#This Row],[Quotidien]]*365 -> 299.30 €
B45: Dépenses_discrétionnaires | C45: Rénovations | D45: 13.15 € | E45: =Quotidien[[#This Row],[Annuel]]/12 -> 399.98 € | F45: =Quotidien[[#This Row],[Quotidien]]*365 -> 4,799.75 €
B46: Dépenses_discrétionnaires | C46: Divers 1 | D46: 0.00 € | E46: =Quotidien[[#This Row],[Annuel]]/12 -> 0.00 € | F46: =Quotidien[[#This Row],[Quotidien]]*365 -> 0.00 €
B47: Dépenses_discrétionnaires | C47: Divers 2 | D47: 0.00 € | E47: =Quotidien[[#This Row],[Annuel]]/12 -> 0.00 € | F47: =Quotidien[[#This Row],[Quotidien]]*365 -> 0.00 €
B48: Épargne | C48: Réserves de trésorerie | D48: 13.70 € | E48: =Quotidien[[#This Row],[Annuel]]/12 -> 416.71 € | F48: =Quotidien[[#This Row],[Quotidien]]*365 -> 5,000.50 €
B49: Épargne | C49: Épargne retraite | D49: 32.88 € | E49: =Quotidien[[#This Row],[Annuel]]/12 -> 1,000.10 € | F49: =Quotidien[[#This Row],[Quotidien]]*365 -> 12,001.20 €
B50: Épargne | C50: Compte d’épargne/placement | D50: 16.44 € | E50: =Quotidien[[#This Row],[Annuel]]/12 -> 500.05 € | F50: =Quotidien[[#This Row],[Quotidien]]*365 -> 6,000.60 €
B51: Épargne | C51: Divers 1 | D51: 0.00 € | E51: =Quotidien[[#This Row],[Annuel]]/12 -> 0.00 € | F51: =Quotidien[[#This Row],[Quotidien]]*365 -> 0.00 €
B52: Épargne | C52: Divers 2 | D52: 0.00 € | E52: =Quotidien[[#This Row],[Annuel]]/12 -> 0.00 € | F52: =Quotidien[[#This Row],[Quotidien]]*365 -> 0.00 €
B53: Total | D53: =SUMIF(Quotidien[Type],"Revenus",Quotidien[Quotidien])-SUMIF(Quotidien[Type],"<>Revenus",Quotidien[Quotidien]) -> 107.10 € | E53: =SUMIF(Quotidien[Type],"Revenus",Quotidien[Mensuel])-SUMIF(Quotidien[Type],"<>Revenus",Quotidien[Mensuel]) -> 3,257.63 € | F53: =SUMIF(Quotidien[Type],"Revenus",Quotidien[Annuel])-SUMIF(Quotidien[Type],"<>Revenus",Quotidien[Annuel]) -> 39,091.50 €

Sheet Revenus
B1: FLUX DE TRÉSORERIE PERSONNELS | F1: GUIDE | G1: RÉCAPITULATIF QUOTIDIEN | H1: REVENUS | I1: DÉPENSES
B2: Total des flux de trésorerie à ce jour : | D2: =FluxTrésorerieAnnuelsÀCeJour -> 39,750.00 € | F2: Il s’agit d’une estimation annuelle. Cette feuille de calcul vous permet de consulter les montants annuels avec des valeurs mensuelles estimées. Si vous souhaitez ajouter des postes quotidiens à la table, estimez le montant ou la valeur annuel, et placez cette valeur dans la colonne Annuel appropriée.
B3: Revenus | C3: Annuel | D3: Mensuel
B4: Salaire | C4: 90,000.00 € | D4: =Revenus[[#This Row],[Annuel ]]/12 -> 7,500.00 €
B5: Commissions/Primes | C5: 5,000.00 € | D5: =Revenus[[#This Row],[Annuel ]]/12 -> 416.67 €
B6: Divers 1 | C6: 30,000.00 € | D6: =Revenus[[#This Row],[Annuel ]]/12 -> 2,500.00 €
B7: Divers 2 | D7: =Revenus[[#This Row],[Annuel ]]/12 -> 0.00 €
B8: Divers 3 | D8: =Revenus[[#This Row],[Annuel ]]/12 -> 0.00 €
B9: Divers 4 | D9: =Revenus[[#This Row],[Annuel ]]/12 -> 0.00 €
B10: Total | C10: =SUBTOTAL(109,Revenus[[Annuel ]]) -> 125,000.00 € | D10: =SUBTOTAL(109,Revenus[[Mensuel ]]) -> 10,416.67 €

Sheet Dépenses
B1: FLUX DE TRÉSORERIE PERSONNELS | F1: GUIDE | G1: REVENUS | H1: DÉPENSES | I1: DÉPENSES DISCRÉTIONNAIRES
B2: Total des flux de trésorerie à ce jour : | D2: =FluxTrésorerieAnnuelsÀCeJour -> 39,750.00 € | F2: Il s’agit d’une estimation annuelle. Cette feuille de calcul vous permet de consulter les montants annuels avec des valeurs mensuelles estimées. Si vous souhaitez ajouter des postes quotidiens à la table, estimez le montant ou la valeur annuel, et placez cette valeur dans la colonne Annuel appropriée.
B3: Dépenses | C3: Annuel | D3: Mensuel
B4: Assurance maladie | C4: 15,000.00 € | D4: =Dépenses[[#This Row],[Annuel ]]/12 -> 1,250.00 €
B5: Impôts sur les revenus | C5: 2,500.00 € | D5: =Dépenses[[#This Row],[Annuel ]]/12 -> 208.33 €
B6: Taxe automobile/Frais | C6: 200.00 € | D6: =Dépenses[[#This Row],[Annuel ]]/12 -> 16.67 €
B7: Prêt automobile | C7: 4,000.00 € | D7: =Dépenses[[#This Row],[Annuel ]]/12 -> 333.33 €
B8: Prêt immobilier/Loyer | C8: 15,000.00 € | D8: =Dépenses[[#This Row],[Annuel ]]/12 -> 1,250.00 €
B9: Assurance | C9: 250.00 € | D9: =Dépenses[[#This Row],[Annuel ]]/12 -> 20.83 €
B10: Électricité | C10: 1,200.00 € | D10: =Dépenses[[#This Row],[Annuel ]]/12 -> 100.00 €
B11: Gaz | C11: 600.00 € | D11: =Dépenses[[#This Row],[Annuel ]]/12 -> 50.00 €
B12: Eau/assainissement | C12: 600.00 € | D12: =Dépenses[[#This Row],[Annuel ]]/12 -> 50.00 €
B13: Ordures ménagères | C13: 150.00 € | D13: =Dépenses[[#This Row],[Annuel ]]/12 -> 12.50 €
B14: Téléphone | C14: 600.00 € | D14: =Dépenses[[#This Row],[Annuel ]]/12 -> 50.00 €
B15: Internet | C15: 600.00 € | D15: =Dépenses[[#This Row],[Annuel ]]/12 -> 50.00 €
B16: Prime assurance vie/invalidité | C16: 1,500.00 € | D16: =Dépenses[[#This Row],[Annuel ]]/12 -> 125.00 €
B17: Nourriture | C17: 5,000.00 € | D17: =Dépenses[[#This Row],[Annuel ]]/12 -> 416.67 €
B18: Habillement | C18: 1,200.00 € | D18: =Dépenses[[#This Row],[Annuel ]]/12 -> 100.00 €
B19: Soins médicaux/dentaires/Pharmacie | C19: 600.00 € | D19: =Dépenses[[#This Row],[Annuel ]]/12 -> 50.00 €
B20: Divers 1 | D20: =Dépenses[[#This Row],[Annuel ]]/12 -> 0.00 €
B21: Divers 2 | D21: =Dépenses[[#This Row],[Annuel ]]/12 -> 0.00 €
B22: Total | C22: =SUBTOTAL(109,Dépenses[[Annuel ]]) -> 49,000.00 € | D22: =SUBTOTAL(109,Dépenses[[Mensuel ]]) -> 4,083.33 €

Sheet Dépenses discrétionnaires
B1: FLUX DE TRÉSORERIE PERSONNELS | F1: GUIDE | G1: DÉPENSES | H1: DÉPENSES DISCRÉTIONNAIRES | I1: ÉPARGNE
B2: Total des flux de trésorerie à ce jour : | D2: =FluxTrésorerieAnnuelsÀCeJour -> 39,750.00 € | F2: Il s’agit d’une estimation annuelle. Cette feuille de calcul vous permet de consulter les montants annuels avec des valeurs mensuelles estimées. Si vous souhaitez ajouter des postes quotidiens à la table, estimez le montant ou la valeur annuel, et placez cette valeur dans la colonne Annuel appropriée.
B3: Dépenses discrétionnaires | C3: Annuel | D3: Mensuel
B4: Restaurants | C4: 1,200.00 € | D4: =Dépenses_discrétionnaires[[#This Row],[Annuel ]]/12 -> 100.00 €
B5: Cadeaux | C5: 600.00 € | D5: =Dépenses_discrétionnaires[[#This Row],[Annuel ]]/12 -> 50.00 €
B6: Déplacements | C6: 2,250.00 € | D6: =Dépenses_discrétionnaires[[#This Row],[Annuel ]]/12 -> 187.50 €
B7: Loisirs | C7: 1,200.00 € | D7: =Dépenses_discrétionnaires[[#This Row],[Annuel ]]/12 -> 100.00 €
B8: Soins personnels | C8: 300.00 € | D8: =Dépenses_discrétionnaires[[#This Row],[Annuel ]]/12 -> 25.00 €
B9: Achats | C9: 2,000.00 € | D9: =Dépenses_discrétionnaires[[#This Row],[Annuel ]]/12 -> 166.67 €
B10: Dons | C10: 600.00 € | D10: =Dépenses_discrétionnaires[[#This Row],[Annuel ]]/12 -> 50.00 €
B11: Club/Abonnements | C11: 300.00 € | D11: =Dépenses_discrétionnaires[[#This Row],[Annuel ]]/12 -> 25.00 €
B12: Rénovations | C12: 4,800.00 € | D12: =Dépenses_discrétionnaires[[#This Row],[Annuel ]]/12 -> 400.00 €
B13: Divers 1 | D13: =Dépenses_discrétionnaires[[#This Row],[Annuel ]]/12 -> 0.00 €
B14: Divers 2 | D14: =Dépenses_discrétionnaires[[#This Row],[Annuel ]]/12 -> 0.00 €
B15: Total | C15: =SUBTOTAL(109,Dépenses_discrétionnaires[[Annuel ]]) -> 13,250.00 € | D15: =SUBTOTAL(109,Dépenses_discrétionnaires[[Mensuel ]]) -> 1,104.17 €

Sheet Épargne
B1: FLUX DE TRÉSORERIE PERSONNELS | F1: GUIDE | G1: DÉPENSES DISCRÉTIONNAIRES | H1: ÉPARGNE
B2: Total des flux de trésorerie à ce jour : | D2: =FluxTrésorerieAnnuelsÀCeJour -> 39,750.00 € | F2: Il s’agit d’une estimation annuelle. Cette feuille de calcul vous permet de consulter les montants annuels avec des valeurs mensuelles estimées. Si vous souhaitez ajouter des postes quotidiens à la table, estimez le montant ou la valeur annuel, et placez cette valeur dans la colonne Annuel appropriée.
B3: Épargne | C3: Annuel | D3: Mensuel
B4: Réserves de trésorerie | C4: 5,000.00 € | D4: =Épargne[[#This Row],[Annuel ]]/12 -> 416.67 €
B5: Épargne retraite | C5: 12,000.00 € | D5: =Épargne[[#This Row],[Annuel ]]/12 -> 1,000.00 €
B6: Épargne/placement | C6: 6,000.00 € | D6: =Épargne[[#This Row],[Annuel ]]/12 -> 500.00 €
B7: Divers 1 | D7: =Épargne[[#This Row],[Annuel ]]/12 -> 0.00 €
B8: Divers 2 | D8: =Épargne[[#This Row],[Annuel ]]/12 -> 0.00 €
B9: Total | C9: =SUBTOTAL(109,Épargne[[Annuel ]]) -> 23,000.00 € | D9: =SUBTOTAL(109,Épargne[[Mensuel ]]) -> 1,916.67 €
